[Event "FRA-ch Teams Top 16-A 2022"]
[Site "Chartres"]
[Date "2022.06.10"]
[Round "2.29"]
[White "Abergel, Thal"]
[Black "Bauer, Christian"]
[Result "1-0"]
[ECO "B21"]
[WhiteElo "2378"]
[BlackElo "2596"]
[Annotator "TA"]
[PlyCount "95"]
[EventDate "2022.06.09"]
[EventType "team-tourn"]
[EventCountry "FRA"]
[SourceTitle "playchess.com"]
[Source "ChessBase"]
[SourceQuality "1"]
[TimeControl "40/5400+30:1800+30"]

{[%evp 9,95,-1,5,0,0,14,20,0,0,-41,-50,-40,0,-13,-2,-15,30,-20,-21,-25,-35,-68,-25,-39,-25,-25,-25,-25,-27,-55,-48,-103,-45,-57,-54,-45,-44,-70,-18,-8,-12,-10,-2,-10,-18,-5,-8,-9,-8,-4,-2,-20,0,-14,60,74,76,56,54,63,80,80,81,81,81,90,79,28,44,59,58,52,397,365,643,641,903,964,1069,1038,12781,4906,29982,5719,29989,29990,29990,29991]} 1. e4 {[%emt 0:00:02]} c5 {[%emt 0:00:37]} 2. Be2 {[%emt 0:00:30]} Nc6 {[%emt 0:00:42]} 3. f4 {[%emt 0:00:54]} g6 {[%emt 0:07:01]} 4. Nf3 {[%emt 0:01:01]} Bg7 {[%emt 0:02:55]} 5. d3 {[%emt 0:01:17]} d6 {[%emt 0:00:59]} 6. c3 {[%emt 0:02:50] B21: Sicilian: 2 f4 and Morra Gambit.} Rb8 {[%emt 0:01:30]} 7. O-O {[%emt 0:02:35]} Nf6 {[%emt 0:00:35][%cal Bg8f6,Bf6d7,Bd7b6][%mdl 32]} 8. Qe1 {[%emt 0:07:03] The position is equal.} O-O {[%emt 0:06:48]} 9. Nbd2 {[%emt 0:08:36]} b5 {[%emt 0:01:47]} 10. a3 {[%emt 0:03:29] [#]} Nd7 $146 {[%emt 0:19:14]} ({Predecessor:} 10... a5 11. Qh4 b4 12. axb4 axb4 13. Nc4 bxc3 14. bxc3 Rb3 15. Bd2 d5 16. Nce5 Bb7 17. Nxc6 Bxc6 {0-1 (43) Moskalenko,A (2515)-Le,T (2514) Chess.com INT 2021}) 11. Ng5 {[%emt 0:15:33]} e6 {[%emt 0:15:23]} 12. Ndf3 {[%emt 0:01:26][%cal Og5h7] aiming for Nxh7!} (12. Qh4 h6 13. Ngf3 Qxh4 14. Nxh4 b4 15. axb4 cxb4 $17) 12... Nb6 {[%emt 0:01:27]} (12... h6 $5 {[%cal Rh6g5]} 13. Nh3 a5 $15) 13. g4 {[%emt 0:24:31]} (13. Qh4 h6 $15) ({Better is} 13. e5) 13... f6 {[%emt 0:04:54][%cal Bf7f6,Bf6f5][%mdl 32]} 14. Nh3 {[%emt 0:00:18][%cal Of4f5]} f5 $36 {[%emt 0:00:20][%mdl 2048] Black has good play.} 15. Nh4 {[%emt 0:04:07]} Ne7 {[%emt 0:12:53]} (15... Bf6 $5 {[%cal Rf6h4]} 16. Ng2 Na5 $15) 16. Bf3 {[%emt 0:02:43]} Qd7 {[%emt 0:05:12]} 17. Qg3 {[%emt 0:02:09]} Bb7 {[%emt 0:03:04]} 18. Rf2 {[%emt 0:02:50]} c4 {[%emt 0:01:06]} 19. gxf5 {[%emt 0:04:40]} exf5 {[%emt 0:00:09]} 20. exf5 {[%emt 0:00:31]} (20. Be3 $1 $15) 20... Nxf5 {[%emt 0:01:02]} (20... Bxf3 $17 21. Rxf3 Nxf5 22. Nxf5 Qxf5) 21. Nxf5 $15 {[%emt 0:00:07]} Qxf5 {[%emt 0:01:29]} 22. Be3 $1 {[%emt 0:03:27]} Bxf3 {[%emt 0:07:13]} ({Of course not} 22... Qxd3 23. Bxb6 axb6 24. Bxb7 Rxb7 25. Qxd3 cxd3 26. Rd1 $11) 23. Qxf3 {[%emt 0:00:18]} cxd3 {[%emt 0:04:12]} (23... Nd5 $15 24. Bxa7 Ra8 25. dxc4 bxc4) 24. Bxb6 $11 {[%emt 0:00:48]} Rxb6 {[%emt 0:01:58]} 25. Rd1 {[%emt 0:00:16]} a5 {[%emt 0:00:00][%cal Ba7a5,Ba5b4][%mdl 32]} 26. Rxd3 {[%emt 0:00:25]} (26. Qxd3 {is interesting.} b4 27. axb4 axb4 28. Ng5) 26... b4 {[%emt 0:00:00]} 27. cxb4 {[%emt 0:01:17]} axb4 {[%emt 0:00:00]} 28. a4 {[%emt 0:00:20]} h6 {[%emt 0:01:12]} 29. Kg2 {[%emt 0:00:55]} Kh7 {[%emt 0:00:28]} 30. b3 {[%emt 0:00:50]} Rc8 {[%emt 0:00:23]} 31. Rd5 {[%emt 0:01:54]} Qf6 {[%emt 0:00:04] [#]} (31... Qf7 $11) 32. Ng5+ $1 $14 {[%emt 0:00:58]} Kh8 {[%emt 0:00:12]} 33. Ne4 {[%emt 0:00:27] Prevents Rc3.} Qe6 {[%emt 0:00:40]} 34. Rfd2 {[%emt 0:00:34]} Rc1 {[%emt 0:01:10]} 35. a5 {[%emt 0:01:59]} Rbc6 {[%emt 0:00:03]} 36. Rxd6 {[%emt 0:00:27]} Rxd6 {[%emt 0:00:18]} 37. Rxd6 {[%emt 0:00:10]} Qf5 {[%emt 0:00:24]} 38. a6 {[%emt 0:00:45]} ({White should play} 38. Rd8+ $16 Kh7 39. Rd5 $1 (39. a6 Ra1 $11)) 38... Ra1 $1 $11 {[%emt 0:00:12]} 39. h4 {[%emt 0:06:58]} Ra2+ {[%emt 0:00:43]} 40. Kg3 {[%emt 0:00:00] And now Qd3 would win.} Ra3 $2 {[%emt 0:01:18][%mdl 8192] This move loses the game for Black.} (40... h5 $1 $14) 41. Qd3 $1 $18 {[%emt 0:01:13][%cal Oh4h5] Strongly threatening h5!} Qf7 $2 {[%emt 0:17:42]} (41... Ra1 42. Qc4 h5) 42. Nc5 {[%emt 0:13:15] Threatens to win with Rd8+.} Bf6 {[%emt 0:04:16] Inhibits Rd8+.} 43. Qe4 {[%emt 0:04:02]} Qf8 {[%emt 0:07:27] [#]} 44. Rd7 $1 {[%emt 0:05:22][%cal Oa6a7] Hoping for a7!} Ra2 {[%emt 0:01:08] [#]} (44... Bg7 45. Qxg6) 45. a7 $1 {[%emt 0:01:20] Active counter play!} Ra5 {[%emt 0:02:16] [#]} (45... Qg8 46. Qxb4) 46. Qxg6 $1 {[%emt 0:01:49]} Bxh4+ {[%emt 0:00:30]} (46... Qg8 47. Qxg8+) 47. Kh3 {[%emt 0:01:51][%csl Gg6][%cal Rd7h7]} ({And not} 47. Kxh4 Qxf4+ 48. Qg4 (48. Kh3 Qf3+ 49. Kh4 Qf4+ 50. Qg4 Qh2+ 51. Qh3 Qf4+ 52. Qg4 Qh2+ 53. Qh3 Qf4+ 54. Qg4 $11) 48... Qh2+ 49. Qh3 Qf4+ 50. Qg4 Qh2+ 51. Qh3 Qf4+ 52. Qg4 $11) 47... Be7 {[%emt 0:00:30]} 48. Ne6 {[%emt 0:00:18] Weighted Error Value: White=0.08 (flawless) /Black=0.63} 1-0

[Event "FRA-ch Teams Top 16-A 2022"]
[Site "Chartres"]
[Date "2022.06.10"]
[Round "2.30"]
[White "Maurizzi, Marc`Andria"]
[Black "Kuhn, Clement"]
[Result "1-0"]
[ECO "B62"]
[WhiteElo "2490"]
[BlackElo "2280"]
[Annotator "TA"]
[PlyCount "79"]
[EventDate "2022.06.09"]
[EventType "team-tourn"]
[EventCountry "FRA"]
[SourceTitle "playchess.com"]
[Source "ChessBase"]
[SourceQuality "1"]
[TimeControl "40/5400+30:1800+30"]

{[%evp 12,79,29,22,46,23,28,18,27,29,29,24,35,26,30,27,28,31,28,27,37,0,45,11,7,19,8,7,89,79,107,22,27,16,11,15,83,85,104,79,218,218,171,126,206,189,206,196,265,231,378,390,391,204,320,318,559,552,780,742,821,802,2309,1197,1253,1097,29979,29980,29990,29991]} 1. e4 {[%emt 0:00:03]} c5 {[%emt 0:03:46]} 2. Nf3 {[%emt 0:00:06][%cal Bg1f3,Bf3d4,Bd4b5][%mdl 32]} d6 {[%emt 0:00:02]} 3. Nc3 {[%emt 0:02:00]} Nc6 {[%emt 0:00:10]} 4. d4 {[%emt 0:01:18]} cxd4 {[%emt 0:00:03]} 5. Nxd4 {[%emt 0:00:03]} Nf6 {[%emt 0:00:02]} 6. Bg5 {[%emt 0:00:09]} e6 {[%emt 0:00:05]} 7. Qd3 {[%emt 0:00:03]} Bd7 {[%emt 0:02:06] is the new trend. B62: Sicilian: Richter-Rauzer: 6...e6: Unusual White 7th moves.} 8. Ndb5 {[%emt 0:00:32]} Nb4 {[%emt 0:00:20]} 9. Qd1 {[%emt 0:00:17]} a6 {[%emt 0:00:34] The position is equal.} 10. Bxf6 {[%emt 0:01:19]} gxf6 {[%emt 0:00:01]} 11. a3 {[%emt 0:00:05]} Nxc2+ {[%emt 0:00:04]} 12. Qxc2 {[%emt 0:00:04]} axb5 {[%emt 0:00:05]} 13. Bxb5 {[%emt 0:03:33]} Bxb5 {[%emt 0:00:02]} 14. Nxb5 {[%emt 0:00:02] Strongly threatening Nc7+.} Qa5+ {[%emt 0:00:00]} 15. Nc3 {[%emt 0:00:18]} Qa6 {[%emt 0:00:01] [#]} 16. Qe2 $146 {[%emt 0:11:05]} ({Predecessor:} 16. Ne2 Qc6 17. Qd3 f5 18. exf5 Qxg2 19. Rg1 Qc6 20. fxe6 fxe6 21. Rc1 Qd7 22. Qd4 {½-½ (58) Plazuelo Pascual,J (2462)-Rodriguez Lopez,R (2205) Barcelona 2021}) 16... Be7 {[%emt 0:10:17]} 17. Rd1 {[%emt 0:07:18]} (17. Nb5 $5 {[%cal Rb5c7]} Qa5+ 18. Kf1 $14) 17... Rg8 {[%emt 0:12:16]} 18. g3 {[%emt 0:04:22]} Rg5 {[%emt 0:09:15]} 19. Rd3 {[%emt 0:03:15]} b5 {[%emt 0:11:15]} (19... Re5 $11 {remains equal.}) 20. O-O $16 {[%emt 0:04:22]} Qb6 {[%emt 0:05:17] [#]} 21. Rfd1 {[%emt 0:09:31]} (21. b4 $1 $16) 21... b4 $11 {[%emt 0:05:41]} 22. axb4 {[%emt 0:03:25]} Qxb4 {[%emt 0:02:00]} 23. Rd4 {[%emt 0:00:52][%cal Bd3d4,Bd4c4,Bc4c6][%mdl 32]} Qb6 {[%emt 0:06:36]} (23... Qb3 $1 $11) 24. b4 $16 {[%emt 0:02:14]} Kf8 {[%emt 0:14:35]} 25. Kg2 $36 {[%emt 0:06:18][%mdl 2048] White is in control.} Kg8 {[%emt 0:04:29] [#]} (25... Rc8 $16 26. h4 Rg8) 26. h4 $1 $18 {[%emt 0:01:47]} Rg7 {[%emt 0:00:16]} 27. Qb5 {[%emt 0:03:13]} Qd8 {[%emt 0:03:36]} (27... Qxb5 $16 {keeps fighting.} 28. Nxb5 Rg4) 28. Rc4 Kh8 {[%emt 0:00:30]} 29. Rc6 Rc8 {[%emt 0:00:30]} (29... Rg4 {was worth a try.} 30. Qh5 Rg7) 30. Ra1 Rg8 {[%emt 0:00:30]} (30... Rb8 $142 31. Qa5 Qe8) 31. Ra7 Rb8 {[%emt 0:00:30]} 32. Rb7 (32. Qa6 $142) 32... d5 {[%emt 0:00:30]} (32... Re8 $142 33. Qa6 Rxb7 34. Qxb7 Qb8) 33. exd5 Rxb7 $2 {[%emt 0:00:30]} (33... exd5 34. Rcb6 (34. Rxb8 Qxb8 35. Qxd5 Bxb4 $18) 34... Rxb7 35. Rxb7 d4) 34. Qxb7 {And now Rc7 would win.} exd5 {[%emt 0:00:30]} 35. Rc7 d4 {[%emt 0:00:30]} 36. Nd5 Bf8 {[%emt 0:00:30]} 37. Rxf7 {[%csl Gb7][%cal Rf7h7]} Bg7 {[%emt 0:00:30] [#]} 38. Nxf6 $1 {[%mdl 512]} d3 {[%emt 0:00:30]} (38... Rf8 39. Qe4) 39. Nxg8 d2 {[%emt 0:00:30]} 40. Rxg7 {Weighted Error Value: White=0.19 (very precise) /Black=0.72} 1-0

[Event "FRA-ch Teams Top 16-A 2022"]
[Site "Chartres"]
[Date "2022.06.10"]
[Round "2.31"]
[White "Mekhane, Adam"]
[Black "Guliyev, Namig"]
[Result "0-1"]
[ECO "C42"]
[WhiteElo "2276"]
[BlackElo "2547"]
[Annotator "TA"]
[PlyCount "78"]
[EventDate "2022.06.09"]
[EventType "team-tourn"]
[EventCountry "FRA"]
[SourceTitle "playchess.com"]
[Source "ChessBase"]
[SourceQuality "1"]
[TimeControl "40/5400+30:1800+30"]

{[%evp 23,78,16,32,21,35,24,19,23,25,21,55,46,102,86,87,88,76,79,75,-6,-25,-11,-11,-25,-28,-11,-18,-102,-33,-158,-164,-155,-152,-151,-151,-209,-163,-179,-150,-209,-208,-204,-208,-552,-546,-546,-543,-537,-395,-871,-862,-831,-818,-5770,-6274,-29973,-29974]} 1. e4 {[%emt 0:00:01]} e5 {[%emt 0:02:27]} 2. Nf3 {[%emt 0:00:06]} Nf6 {[%emt 0:00:05]} 3. Nxe5 {[%emt 0:00:26]} d6 {[%emt 0:00:06]} 4. Nf3 {[%emt 0:00:02]} Nxe4 {[%emt 0:00:09]} 5. d4 {[%emt 0:00:06]} d5 {[%emt 0:01:03]} 6. Bd3 {[%emt 0:00:07]} Be7 {[%emt 0:02:12]} 7. O-O {[%emt 0:01:45]} Nc6 {[%emt 0:00:16]} 8. c4 {[%emt 0:05:08]} Nf6 {[%emt 0:03:59]} 9. h3 {[%emt 0:11:22]} Nb4 {[%emt 0:02:49]} 10. Be2 {[%emt 0:02:29]} dxc4 {[%emt 0:05:21]} 11. Bxc4 {[%emt 0:03:51]} O-O {[%emt 0:00:22]} 12. Nc3 {[%emt 0:01:49]} c6 {[%emt 0:00:26]} 13. Bg5 {[%emt 0:06:15] C42: Petroff Defence: 3 Nxe5 and unusual White 3rd moves.} Bf5 {[%emt 0:03:15]} 14. a3 {[%emt 0:08:53]} Nbd5 {[%emt 0:02:30]} 15. Re1 {[%emt 0:06:44] The position is equal.} h6 {[%emt 0:01:41]} 16. Bh4 {[%emt 0:01:54] [#]} Bh7 $146 {[%emt 0:13:58]} ({Predecessor:} 16... Be6 17. Ne5 Re8 18. Qf3 Nc7 19. Rad1 Bxc4 20. Nxc4 Nfd5 21. Bg3 Nxc3 22. Qxc3 Rc8 {0-1 (54) Daurelle,H (2368)-Markus,R (2236) LSS email 2009}) 17. Ne5 {[%emt 0:09:11]} Nb6 {[%emt 0:05:19]} ({Better is} 17... Nd7 $14 18. Bxe7 (18. Nxd5 Bxh4 19. Ne3 Nxe5 $11) 18... Nxe7) 18. Ba2 {[%emt 0:05:26]} Nfd5 {[%emt 0:05:07]} 19. Nxd5 {[%emt 0:05:27]} (19. Bxe7 {is interesting.} Nxe7 20. Qb3 Ned5 21. a4) 19... Bxh4 {[%emt 0:05:14]} 20. Nxb6 {[%emt 0:01:24]} axb6 {[%emt 0:01:06]} 21. Nxf7 {[%emt 0:07:47]} ({White should try} 21. Qg4 $16) 21... Rxf7 $11 {[%emt 0:00:50]} 22. Qh5 $1 {[%emt 0:02:39][%mdl 64] [#] Pin} (22. Bxf7+ Kxf7 23. d5 Qxd5 $17) 22... g6 $1 {[%emt 0:07:22]} 23. Bxf7+ {[%emt 0:02:01]} Kxf7 {[%emt 0:01:14]} 24. Qxh6 {[%emt 0:00:02]} Kg8 {[%emt 0:01:00] Strongly threatening ...Bg5. Chess con chili.} 25. Qe3 {[%emt 0:04:36]} (25. Qf4 $11) 25... Bf6 {[%emt 0:01:25]} (25... Ra5 $17) 26. Qe6+ {[%emt 0:02:05] [#]} (26. d5 $15 cxd5 27. Qb3) 26... Kg7 $1 $17 {[%emt 0:00:21][%mdl 1024] Black has strong compensation.} 27. Rad1 Bg8 {[%emt 0:00:30]} 28. Qg4 Ra4 {[%emt 0:00:30][%cal Ra4d4]} 29. g3 (29. Re4 $17) 29... Bf7 {[%emt 0:00:30][%cal Ra4d4]} ({And not} 29... Rxd4 30. Rxd4 Bxd4 31. Re2) ({Weaker is} 29... Bxd4 30. Re4 c5 31. Rde1 $17) 30. Re4 Qd5 {[%emt 0:00:30]} 31. h4 (31. Rde1 $17) 31... c5 $19 {[%emt 0:00:30][%cal Bc6c5,Bc5c4][%mdl 32]} 32. Kh2 Rxd4 {[%emt 0:00:30]} 33. Rde1 (33. Rexd4 {is more resistant.} cxd4 34. Qf4) 33... Rxe4 {[%emt 0:00:30]} 34. Rxe4 Bxb2 {[%emt 0:00:30]} 35. Re7 c4 {[%emt 0:00:30] And now ...Qc5 would win.} 36. Qc8 $2 (36. Rd7 Qf5 37. Qxf5 gxf5 38. Kg2) 36... Qc5 {[%emt 0:00:30]} 37. Qxb7 Qxf2+ {[%emt 0:00:30]} 38. Kh3 Bxa3 {[%emt 0:00:30]} 39. Rc7 Bd6 {[%emt 0:00:30][%csl LRc7,LRg3] Weighted Error Value: White=0.87/Black=0.09 (flawless)} 0-1

[Event "FRA-ch Teams Top 16-A 2022"]
[Site "Chartres"]
[Date "2022.06.10"]
[Round "2.32"]
[White "Martsynovskaya, Marina"]
[Black "Aflalo, Sophie"]
[Result "1/2-1/2"]
[ECO "B33"]
[WhiteElo "2070"]
[BlackElo "2152"]
[Annotator "TA"]
[PlyCount "151"]
[EventDate "2022.06.09"]
[EventType "team-tourn"]
[EventCountry "FRA"]
[SourceTitle "playchess.com"]
[Source "ChessBase"]
[SourceQuality "1"]
[TimeControl "40/5400+30:1800+30"]

{[%evp 22,150,33,12,3,0,0,11,3,-25,0,0,3,-60,-52,-53,-43,-74,-64,-70,-72,-65,-68,-66,-77,-66,-75,-77,-71,-89,-82,-77,-7,-10,0,0,0,0,0,2,6,6,6,0,15,0,0,0,0,0,0,0,0,0,0,0,0,0,0,0,0,0,0,0,0,0,0,0,0,0,0,0,0,0,23,23,23,0,0,0,0,0,0,0,618,600,514,106,106,106,592,390,12833,4610,12829,12828,11085,10532,5732,4602,29972,29973,29978,29979,29978,29971,29952,12850,4690,6070,12809,0,0,0,0,0,0,0,0,0,0,0,0,0,0,0,0,0,0,0,0]} 1. e4 {[%emt 0:00:02]} c5 {[%emt 0:02:54]} 2. Nf3 {[%emt 0:00:18]} Nc6 {[%emt 0:00:04]} 3. d4 {[%emt 0:00:09]} cxd4 {[%emt 0:00:02]} 4. Nxd4 {[%emt 0:00:09]} Nf6 {[%emt 0:00:02]} 5. Nc3 {[%emt 0:00:22]} e5 {[%emt 0:00:02]} 6. Ndb5 {[%emt 0:00:17]} d6 {[%emt 0:00:24]} 7. Bg5 {[%emt 0:00:34]} a6 {[%emt 0:00:15]} 8. Na3 {[%emt 0:00:07]} b5 {[%emt 0:00:14]} 9. Bxf6 {[%emt 0:00:35]} gxf6 {[%emt 0:00:20][%cal Bg7f6,Bf6f5,Bf5f4][%mdl 32]} 10. Nd5 {[%emt 0:00:16]} f5 {[%emt 0:04:40]} 11. g3 {[%emt 0:02:29]} Bg7 {[%emt 0:06:34]} 12. Bg2 {[%emt 0:02:30]} f4 {[%emt 0:13:24] B33: Sicilian: Pelikan and Sveshnikov Variations.} 13. c3 {[%emt 0:05:38]} O-O {[%emt 0:01:12]} 14. Qh5 {[%emt 0:12:12]} Ne7 {[%emt 0:12:55]} 15. Nc2 {[%emt 0:08:39]} a5 {[%emt 0:10:11]} 16. Nxe7+ {[%emt 0:16:04]} Qxe7 {[%emt 0:00:02] [#]} 17. gxf4 $146 {[%emt 0:00:11]} ({White should play} 17. O-O $11) ({Predecessor:} 17. O-O Be6 18. gxf4 exf4 19. Nd4 Rac8 20. Nf5 Bxf5 21. Qxf5 Be5 22. Rad1 Kh8 23. Kh1 {1-0 (42) Sochacki,C (2414)-Sanchez,J (2533) Haguenau 2013}) 17... exf4 $15 {[%emt 0:01:24][%cal Ob5b4]} 18. O-O {[%emt 0:08:50]} Qe5 {[%emt 0:02:21]} 19. Qxe5 {[%emt 0:02:00]} dxe5 {[%emt 0:00:52]} 20. Rfd1 {[%emt 0:02:51]} Bg4 {[%emt 0:04:06]} 21. f3 {[%emt 0:00:41]} Be6 {[%emt 0:00:10]} 22. Bf1 {[%emt 0:00:12]} Rfb8 {[%emt 0:09:29]} 23. Na3 {[%emt 0:03:47]} b4 {[%emt 0:00:22]} 24. cxb4 {[%emt 0:00:52]} Rxb4 {[%emt 0:02:25]} 25. b3 {[%emt 0:04:37]} a4 {[%emt 0:01:21]} 26. Bc4 {[%emt 0:07:26]} Bxc4 (26... Bf8 $1 $17 27. Bxe6 fxe6) 27. Nxc4 $11 {[%emt 0:00:30]} axb3 (27... Rab8 {with more complications.} 28. Na5 Rc8 29. Kh1 Rd4) 28. axb3 {[%emt 0:00:30]} Rxa1 29. Rxa1 {[%emt 0:00:30]} Rxb3 $17 {[%mdl 4096] Endgame KRB-KRN} 30. Ra8+ {[%emt 0:00:30]} Bf8 31. Nxe5 {[%emt 0:00:30] And now Nd7 would win.} Kg7 32. Kg2 {[%emt 0:00:30]} Bc5 {Prevents Ra7.} 33. Ra2 {[%emt 0:00:30]} Bd4 34. Ng4 {[%emt 0:00:30]} h5 35. Nf2 {[%emt 0:00:30]} f6 36. Rd2 {[%emt 0:00:30]} Be3 37. Rc2 {[%emt 0:00:30]} Kf7 38. Nd1 {[%emt 0:00:30]} Bd4 39. Rd2 {[%emt 0:00:30]} Be5 40. Nf2 {[%emt 0:00:30]} Ke7 41. Nd3 {[%emt 0:30:30]} Bd6 42. Kh3 {[%emt 0:00:30]} Ke6 43. Kg2 {[%emt 0:00:30]} Rc3 44. Kf2 {[%emt 0:00:30]} Rc4 45. Kg2 {[%emt 0:00:30]} Rc3 46. Kf2 {[%emt 0:00:30]} h4 47. Kg2 {[%emt 0:00:30]} Be5 48. Kh3 {[%emt 0:00:30]} f5 49. Nxe5 {[%emt 0:00:30]} Kxe5 $11 {KR-KR} 50. Rd5+ {[%emt 0:00:30]} Ke6 51. Rxf5 {[%emt 0:00:30]} Rxf3+ 52. Kxh4 {[%emt 0:00:30] Hoping for Kg4.} Re3 $2 {[%mdl 8192]} (52... Rf2 $11) 53. Rxf4 $18 {[%emt 0:00:30]} Ke5 {[#]} 54. Kg5 {[%emt 0:00:30]} (54. Kg4 $1 $18 {h4 would kill now.} Re2 55. h4 Rg2+ 56. Kf3) 54... Rh3 $16 {[#]} 55. Rh4 $1 {[%emt 0:00:30]} Re3 {[%mdl 8192]} (55... Rc3 $16 {is tougher.}) 56. Rh8 $18 {[%emt 0:00:30]} Re1 $2 (56... Kd6 57. Kf4 Re2 58. Rh6+ Ke7) 57. Re8+ {[%emt 0:00:30]} Kd6 58. h4 {[%emt 0:00:30][%cal Bh2h4,Bh4h5][%mdl 32]} Rg1+ 59. Kh6 {[%emt 0:00:30]} Kd7 60. Re5 {[%emt 0:00:30] Threatens to win with Rg5.} Re1 61. Kg6 {[%emt 0:00:30]} Rh1 62. h5 {[%emt 0:00:30]} Kd6 63. Kf6 {[%emt 0:00:30]} Rh4 64. Re6+ {[%emt 0:00:30]} (64. Ra5 $142 Kc6 65. Kg5 Rxe4 66. h6 Re8 67. h7 Rd8 68. Rf5 Kd6 69. Kg6) 64... Kd7 65. Re7+ {[%emt 0:00:30]} Kd8 66. Kg5 $2 {[%emt 0:00:30]} ({White should try} 66. Re5 $18 {White wants to mate with Kg5.} Kc7 67. Kg5) 66... Rxh5+ $1 $11 {The position is equal.} 67. Kxh5 {[%emt 0:00:30] Intending Rh7 and mate.} Kxe7 {KP-K} 68. Kg5 {[%emt 0:00:30]} Ke6 69. Kf4 {[%emt 0:00:30]} Kf6 70. e5+ {[%emt 0:00:30]} Ke6 71. Ke4 {[%emt 0:00:30]} Ke7 72. Kd5 {[%emt 0:00:30]} Kd7 73. e6+ {[%emt 0:00:30]} Ke8 74. Kd6 {[%emt 0:00:30]} Kd8 75. e7+ {[%emt 0:00:30]} Ke8 76. Ke6 {[%emt 0:00:30] Black defended with fortune.  Weighted Error Value: White=0.25 (precise) /Black=0.52} 1/2-1/2